lending/lending_fUSD_20260204
["ID","MTS","AMOUNT","RATE_DAILY","PERIOD"]
[404489993,1770209445756,-500.0,0.000146,2]
[404489994,1770209445765,-500.6069839,0.000146,2]
[404489995,1770209445774,-607.0,0.0001465,2]
[404489996,1770209445783,-2361.0,0.0001465,2]
[404489997,1770209445793,-3530.52962341,0.00014665,2]
[404489998,1770209445802,-4921.53897341,0.00014674,2]
[404489999,1770209445811,-587.0,0.00014691,2]
[404490000,1770209445821,-621.65855172,0.00014705,2]
[404490001,1770209445830,-2373.22977838,0.00014705,2]
[404490002,1770209445840,-500.0,0.00014707,2]
[404490003,1770209445852,-500.0,0.0001474,2]
[404490004,1770209445862,-2351.0,0.00014756,2]
[404490005,1770209445872,-156.79,0.00014757,2]
[404490006,1770209445883,-166.66,0.00014879,2]
[404490007,1770209445893,-151.0,0.00014997,2]
[404490008,1770209445902,-1178.63534639,0.00014999,5]
[404490009,1770209445911,-647.4,0.00014999,2]
[404490010,1770209445922,-500.0,0.00014999,2]
[404490011,1770209445932,-666.0,0.00014999,2]
[404490012,1770209445942,-2052.22892566,0.00015,2]
[404490013,1770209445951,-2142.26330442,0.00015,14]
[404490014,1770209445961,-7989.56617431,0.00015,2]
[404490015,1770209445970,-250.0,0.00015,2]
[404490016,1770209445980,-303016.73763297,0.00015,3]
[404490017,1770209445989,-152.38,0.00015,2]
[404490018,1770209445998,-152.38,0.00015,2]
[404490019,1770209446007,-152.38,0.00015,2]
[404490020,1770209446016,-152.38,0.00015,2]
[404490021,1770209446026,-152.38,0.00015,2]
[404490022,1770209446035,-152.38,0.00015,2]
[404490023,1770209446044,-152.38,0.00015,2]
[404490024,1770209446053,-152.38,0.00015,2]
[404490025,1770209446063,-152.38,0.00015,2]
[404490026,1770209446073,-152.38,0.00015,2]
[404490027,1770209446082,-152.38,0.00015,2]
[404490028,1770209446091,-152.38,0.00015,2]
[404490029,1770209446101,-152.38,0.00015,2]
[404490030,1770209446110,-152.38,0.00015,2]
[404490031,1770209446121,-152.38,0.00015,2]
[404490032,1770209446130,-152.38,0.00015,2]
[404490033,1770209446139,-152.38,0.00015,2]
[404490034,1770209446149,-152.38,0.00015,2]
[404490035,1770209446158,-152.38,0.00015,2]
[404490036,1770209446168,-152.38,0.00015,2]
[404490037,1770209446177,-152.38,0.00015,2]
[404490038,1770209446187,-152.38,0.00015,2]
[404490039,1770209446196,-152.38,0.00015,2]
[404490040,1770209446205,-152.38,0.00015,2]
[404490041,1770209446214,-152.38,0.00015,2]
[404490042,1770209446223,-152.38,0.00015,2]
[404490043,1770209446232,-152.38,0.00015,2]
[404490044,1770209446241,-152.38,0.00015,2]
[404490045,1770209446250,-152.38,0.00015,2]
[404490046,1770209446259,-152.38,0.00015,2]
[404490047,1770209446268,-152.38,0.00015,2]
[404490048,1770209446277,-152.38,0.00015,2]
[404490049,1770209446286,-156.79,0.00015031,2]
[404490050,1770209446295,-2659.32543792,0.00015048,2]
[404490051,1770209446305,-175.5376045,0.00015048,2]
[404490052,1770209446314,-333.18996148,0.00015048,2]
[404490053,1770209446323,-1210.22602651,0.00015062,2]
[404490054,1770209446332,-450.0,0.00015068,2]
[404490055,1770209446341,-1567.1,0.00015069,2]
[404490056,1770209446350,-3530.52962341,0.00015077,2]
[404490057,1770209446359,-4921.53897341,0.00015083,2]
[404490058,1770209446370,-169.62,0.00015096,2]
[404490059,1770209446379,-949.57907636,0.00015126,2]
[404490060,1770209446388,-500.0,0.00015147,2]
[404490061,1770209446397,-728.46930276,0.00015148,2]
[404490062,1770209446406,-722.13817411,0.00015148,2]
[404490063,1770209446416,-1000.0,0.00015148,2]
[404490064,1770209446426,-1000.0,0.00015148,2]
[404490065,1770209446435,-1009.49329008,0.00015148,2]
[404490066,1770209446446,-1000.0,0.00015148,2]
[404490067,1770209446455,-1000.0,0.00015148,2]
[404490068,1770209446465,-1115.98913176,0.00015148,2]
[404490069,1770209446476,-654.35091807,0.00015148,2]
[404490070,1770209446486,-796.55427389,0.00015148,2]
[404490071,1770209446494,-1004.53493259,0.00015148,2]
[404490072,1770209446504,-500.0,0.00015148,2]
[404490073,1770209446513,-246.68559216,0.00015148,2]
[404490074,1770209446522,-1000.0,0.00015148,2]
[404490075,1770209446531,-509.90234857,0.00015148,2]
[404490076,1770209446540,-615.04992732,0.00015148,2]
[404490077,1770209446550,-1000.0,0.00015234,2]
[404490078,1770209446559,-150.0,0.00015257,7]
[404490079,1770209446568,-160.068675,0.00015257,7]
[404490080,1770209446577,-170.13735,0.00015257,7]
[404490081,1770209446586,-180.206026,0.00015257,7]
[404490082,1770209446596,-190.274701,0.00015257,7]
[404490083,1770209446605,-200.343376,0.00015257,7]
[404490084,1770209446614,-210.412052,0.00015257,7]
[404490085,1770209446623,-220.480727,0.00015257,7]
[404490086,1770209446633,-230.549403,0.00015257,7]
[404490087,1770209446642,-240.618078,0.00015257,7]
[404490088,1770209446651,-156.79,0.00015305,2]
[404490089,1770209446660,-8743.32190607,0.00015357,2]
[404490090,1770209446669,-197.72,0.00015414,2]
[404490091,1770209446678,-2101.39145655,0.00015455,2]
[404490092,1770209446687,-322.6107,0.00015469,2]
[404490093,1770209446697,-500.0,0.00015469,2]
[404490094,1770209446706,-500.0,0.00015469,2]
[404490095,1770209446715,-174.61919141,0.00015469,2]
[404490096,1770209446724,-500.0,0.00015469,2]
[404490097,1770209446733,-500.0,0.00015469,2]
[404490098,1770209446742,-500.0,0.00015469,2]
[404490099,1770209446751,-500.0,0.00015469,2]
[404490100,1770209446760,-500.0,0.00015469,2]
[404490101,1770209446770,-500.0,0.00015469,2]
[404490102,1770209446779,-500.0,0.00015469,2]
[404490104,1770209446788,-500.0,0.00015469,2]
[404490105,1770209446798,-626.10481314,0.00015469,2]
[404490106,1770209446806,-209.40437684,0.00015469,2]
[404490107,1770209446816,-3530.52962341,0.00015488,2]
[404490108,1770209446824,-4921.53897341,0.00015491,2]
[404490109,1770209446833,-217.15233878,0.00015524,2]
[404490110,1770209446843,-156.79,0.00015579,2]
[404490111,1770209446855,-225.18697532,0.00015579,2]
[404490112,1770209446865,-233.51889341,0.00015634,2]
[404490113,1770209446874,-150.0,0.00015674,7]
[404490114,1770209446883,-233.059338,0.00015674,7]
[404490115,1770209446894,-316.118676,0.00015674,7]
[404490116,1770209446903,-399.178014,0.00015674,7]
[404490117,1770209446913,-482.237353,0.00015674,7]
[404490118,1770209446923,-565.296691,0.00015674,7]
[404490119,1770209446933,-648.356029,0.00015674,7]
[404490120,1770209446942,-731.415368,0.00015674,7]
[404490121,1770209446952,-814.474706,0.00015674,7]
[404490122,1770209446961,-897.534044,0.00015674,7]
[404490123,1770209446970,-242.15909246,0.00015689,2]
[404490124,1770209446980,-1586.3781423,0.00015696,2]
[404490125,1770209446989,-702.75959751,0.00015696,2]
[404490126,1770209446998,-1500.0,0.00015696,2]
[404490127,1770209447007,-1500.0,0.00015696,2]
[404490128,1770209447017,-1500.0,0.00015696,2]
[404490129,1770209447026,-251.11897888,0.00015744,2]
[404490130,1770209447035,-736.0,0.00015779,2]
[404490131,1770209447045,-260.4103811,0.00015799,2]
[404490132,1770209447054,-195.72251223,0.00015807,2]
[404490133,1770209447064,-150.0,0.00015813,2]
[404490134,1770209447074,-3719.43288921,0.00015813,2]
[404490135,1770209447083,-150.0,0.00015813,2]
[404490136,1770209447093,-13951.84751777,0.00015813,2]
[404490137,1770209447102,-150.0,0.00015813,2]
[404490138,1770209447111,-2828.45580677,0.00015813,2]
[404490139,1770209447122,-616.0,0.00015825,2]
[404490140,1770209447131,-1410.0,0.00015825,2]
[404490141,1770209447139,-3482.0,0.00015825,2]
[404490142,1770209447148,-1205.0,0.00015825,2]
[404490143,1770209447157,-917.0,0.00015825,2]
[404490144,1770209447167,-150.0,0.00015825,2]
[404490145,1770209447175,-1271.0,0.00015825,2]
[404490146,1770209447184,-3253.0,0.00015825,2]
[404490147,1770209447193,-1317.0,0.00015825,2]
[404490148,1770209447203,-2476.46,0.00015825,2]
[404490149,1770209447212,-568.0,0.00015825,2]
[404490150,1770209447221,-156.79,0.00015853,2]
[404490151,1770209447230,-270.0455652,0.00015854,2]
[404490152,1770209447240,-150.0,0.000159,2]
[404490153,1770209447249,-4921.53897341,0.000159,2]
[404490154,1770209447258,-150.0,0.000159,2]
[404490155,1770209447268,-3530.52962341,0.000159,2]
[404490156,1770209447277,-150.0,0.000159,2]
[404490157,1770209447286,-280.03725112,0.00015909,2]
[404490158,1770209447295,-200.0,0.00015918,2]
[404490159,1770209447305,-290.39862941,0.00015964,2]
[404490160,1770209447314,-151.0,0.00015997,2]
[404490161,1770209447323,-666.0,0.00015999,2]
[404490162,1770209447332,-647.4,0.00015999,2]
[404490163,1770209447342,-647.4,0.00015999,2]
[404490164,1770209447351,-647.4,0.00015999,2]
[404490165,1770209447362,-647.4,0.00015999,2]
[404490166,1770209447372,-647.4,0.00015999,2]
[404490167,1770209447381,-647.4,0.00015999,2]
[404490168,1770209447392,-647.62785825,0.00015999,2]
[404490169,1770209447402,-500.0,0.00015999,2]
[404490170,1770209447412,-500.0,0.00015999,2]
[404490171,1770209447421,-500.0,0.00015999,2]
[404490172,1770209447431,-500.0,0.00015999,2]
[404490173,1770209447440,-500.0,0.00015999,2]
[404490174,1770209447449,-307.58505337,0.00015999,2]
[404490175,1770209447458,-31626.0,0.00016,2]
[404490176,1770209447467,-1213371.15992577,0.00016,4]
[404490177,1770209447477,-160.0,0.00016,3]
[404490178,1770209447486,-151.0,0.00016,2]
[404490179,1770209447495,-151.0,0.00016,2]
[404490180,1770209447505,-151.0,0.00016,2]
[404490181,1770209447514,-151.0,0.00016,2]
[404490182,1770209447523,-151.0,0.00016,2]
[404490183,1770209447532,-151.0,0.00016,2]
[404490184,1770209447541,-517.565138,0.00016,2]
[404490185,1770209447550,-517.565138,0.00016,2]
[404490186,1770209447559,-517.565138,0.00016,2]
[404490187,1770209447568,-517.565138,0.00016,2]
[404490188,1770209447577,-151.0,0.00016,2]
[404490189,1770209447586,-151.0,0.00016,2]
[404490190,1770209447595,-510.672568,0.00016,2]
[404490191,1770209447605,-151.0,0.00016,2]
[404490192,1770209447614,-151.0,0.00016,2]
[404490193,1770209447624,-510.672568,0.00016,2]
[404490194,1770209447633,-151.0,0.00016,2]
[404490195,1770209447642,-510.672568,0.00016,2]
[404490196,1770209447651,-151.0,0.00016,2]
[404490197,1770209447660,-510.672568,0.00016,2]
[404490198,1770209447669,-773.362745,0.00016,2]
[404490199,1770209447679,-773.362745,0.00016,2]
[404490200,1770209447689,-773.362745,0.00016,2]
[404490201,1770209447698,-773.362745,0.00016,2]
[404490202,1770209447708,-1210.22602651,0.00016008,2]
[404490203,1770209447718,-259.76,0.00016016,2]
[404490204,1770209447728,-181.08010149,0.00016017,2]
[404490205,1770209447737,-301.1433787,0.00016019,2]
[404490206,1770209447746,-500.0,0.00016064,2]
[404490207,1770209447755,-823.0,0.00016124,2]
[404490208,1770209447765,-156.79,0.00016127,2]
[404490209,1770209447774,-18720.4410938,0.00016143,2]
[404490210,1770209447783,-225.59502225,0.0001619,2]
[404490211,1770209447792,-675.51296807,0.00016199,2]
[404490212,1770209447802,-472239.87687837,0.000162,5]
[404490213,1770209447811,-3292.0,0.00016232,2]
[404490214,1770209447820,-11515.0,0.00016233,2]
[404490215,1770209447829,-2000.0,0.00016244,2]
[404490216,1770209447838,-2000.0,0.00016244,2]
[404490217,1770209447849,-2000.0,0.00016244,2]
[404490218,1770209447858,-2101.39145655,0.0001627,2]
[404490219,1770209447869,-5109.1308999,0.00016312,2]
[404490220,1770209447878,-156.79,0.00016401,2]
[404490221,1770209447888,-450.0,0.00016438,2]
[404490222,1770209447897,-949.57907636,0.00016513,2]
[404490223,1770209447907,-200.0,0.00016515,2]
[404490224,1770209447918,-478.87963374,0.00016541,2]
[404490225,1770209447927,-478.87963376,0.00016541,2]
[404490226,1770209448088,-187.78006525,0.00016565,2]
[404490227,1770209448097,-1567.1,0.00016575,2]
[404490228,1770209448107,-169.62,0.00016606,2]
[404490229,1770209448117,-197.72,0.0001667,2]
[404490230,1770209448126,-156.79,0.00016675,2]
[404490231,1770209448135,-4177.0950193,0.00016689,2]
[404490232,1770209448145,-165.74,0.00016712,2]
[404490233,1770209448154,-503.65232804,0.00016792,2]
[404490234,1770209448164,-2500.0,0.00016792,2]
[404490235,1770209448173,-2500.0,0.00016792,2]
[404490236,1770209448182,-334.5472959,0.00016838,2]
[404490237,1770209448191,-1140.0011959,0.00016895,2]
[404490238,1770209448200,-160.0,0.00016911,2]
[404490239,1770209448209,-8743.32190607,0.00016924,2]
[404490240,1770209448219,-156.79,0.00016949,2]
[404490241,1770209448228,-1210.22602651,0.00016954,2]
[404490242,1770209448238,-478.87963376,0.00016955,2]
[404490243,1770209448247,-300.0,0.00016999,2]
[404490244,1770209448257,-300.0,0.00016999,2]
[404490245,1770209448266,-300.0,0.00016999,2]
[404490246,1770209448275,-5000.0,0.00017,2]
[404490247,1770209448285,-44961.70790143,0.00017,2]
[404490248,1770209448294,-300.0,0.00017,2]
[404490249,1770209448304,-151.0,0.00017,2]
[404490250,1770209448313,-151.0,0.00017,2]
[404490251,1770209448324,-151.0,0.00017,2]
[404490252,1770209448333,-151.0,0.00017,2]
[404490253,1770209448343,-151.0,0.00017,2]
[404490254,1770209448352,-151.0,0.00017,2]
[404490255,1770209448361,-517.565138,0.00017,2]
[404490256,1770209448371,-517.565138,0.00017,2]
[404490257,1770209448380,-517.565138,0.00017,2]
[404490258,1770209448390,-517.565138,0.00017,2]
[404490259,1770209448399,-151.0,0.00017,2]
[404490260,1770209448408,-151.0,0.00017,2]
[404490261,1770209448417,-510.672568,0.00017,2]
[404490262,1770209448426,-151.0,0.00017,2]
[404490263,1770209448435,-151.0,0.00017,2]
[404490264,1770209448444,-510.672568,0.00017,2]
[404490265,1770209448453,-151.0,0.00017,2]
[404490266,1770209448463,-510.672568,0.00017,2]
[404490267,1770209448472,-235.921672,0.00017,2]
[404490268,1770209448481,-510.672568,0.00017,2]
[404490269,1770209448490,-773.362745,0.00017,2]
[404490270,1770209448500,-773.362745,0.00017,2]
[404490271,1770209448509,-773.362745,0.00017,2]
[404490272,1770209448518,-773.362745,0.00017,2]
[404490273,1770209448527,-2101.39145655,0.00017085,2]
[404490274,1770209448537,-200.0,0.00017112,2]
[404490275,1770209448546,-194.72792766,0.00017113,2]
[404490276,1770209448555,-206.0,0.00017125,2]
[404490277,1770209448564,-1252.0,0.00017184,2]
[404490278,1770209448573,-156.9,0.00017223,2]
[404490279,1770209448583,-206.0,0.00017268,2]
[404490280,1770209448592,-159.58944175,0.00017297,2]
[404490281,1770209448601,-300.0,0.00017299,2]
[404490282,1770209448610,-300.0,0.00017299,2]
[404490283,1770209448620,-300.0,0.00017299,2]
[404490284,1770209448629,-235867.8620934,0.000173,2]
[404490285,1770209448638,-3000.0,0.0001734,2]
[404490286,1770209448647,-3000.0,0.0001734,2]
[404490287,1770209448656,-478.87963376,0.00017368,2]
[404490288,1770209448665,-2000.0,0.000174,2]
[404490289,1770209448675,-200.0,0.00017509,2]
[404490290,1770209448683,-692.0,0.00017585,2]
[404490291,1770209448693,-692.0,0.0001759,2]
[404490292,1770209448702,-2000.0,0.000176,2]
[404490293,1770209448711,-692.0,0.00017603,2]
[404490294,1770209448720,-201.93286099,0.00017661,2]
[404490295,1770209448730,-196.0,0.00017665,2]
[404490296,1770209448739,-1152.0,0.00017697,2]
[404490297,1770209448748,-200.0,0.00017709,2]
[404490298,1770209448758,-692.0,0.00017732,2]
[404490299,1770209448767,-478.87963376,0.00017782,2]
[404490300,1770209448776,-2000.0,0.000178,2]
[404490301,1770209448785,-500.0,0.00017808,2]
[404490302,1770209448795,-4609.0,0.00017855,2]
[404490303,1770209448805,-500.0,0.00017863,2]
[404490304,1770209448814,-3500.0,0.00017888,2]
[404490305,1770209448824,-1731.75117718,0.00017888,2]
[404490306,1770209448834,-25000.0,0.00017891,3]
[404490307,1770209448845,-16152.7997049,0.000179,3]
[404490308,1770209448856,-5000.0,0.000179,2]
[404490309,1770209448865,-25000.0,0.000179,3]
[404490310,1770209448875,-1164.2238217,0.000179,3]
[404490311,1770209448886,-949.57907636,0.000179,2]
[404490312,1770209448896,-1210.22602651,0.000179,2]
[404490313,1770209448906,-2659.32543792,0.000179,2]
[404490314,1770209448916,-175.5376045,0.000179,2]
[404490315,1770209448929,-333.18996148,0.000179,2]
[404490316,1770209448939,-2101.39145655,0.000179,2]
[404490317,1770209448948,-500.0,0.00017918,2]
[404490318,1770209448959,-389.0,0.00017926,2]
[404490319,1770209448968,-692.0,0.00017926,2]
[404490320,1770209448978,-692.0,0.00017928,2]
[404490321,1770209448987,-1361.49665959,0.00017958,7]
[404490322,1770209448998,-711.94133585,0.00017958,7]
[404490323,1770209449007,-500.0,0.00017972,2]
[404490324,1770209449017,-500.0,0.00017973,2]
[404490325,1770209449027,-500.0,0.00017973,2]
[404490326,1770209449037,-500.0,0.00017973,2]
[404490327,1770209449046,-500.0,0.00017973,2]
[404490328,1770209449055,-500.0,0.00017973,2]
[404490329,1770209449065,-500.68854041,0.00017973,2]
[404490330,1770209449074,-500.0,0.00017973,2]
[404490331,1770209449084,-151.18993016,0.00017973,2]
[404490332,1770209449093,-501.02089422,0.00017973,2]
[404490333,1770209449103,-500.0,0.00017973,2]
[404490334,1770209449113,-465.90748908,0.00017973,2]
[404490335,1770209449122,-500.0,0.00017973,2]
[404490336,1770209449132,-160.61789884,0.00017973,2]
[404490337,1770209449143,-500.0,0.00017973,2]
[404490338,1770209449152,-500.0,0.00017973,2]
[404490339,1770209449162,-500.96948842,0.00017973,2]
[404490340,1770209449171,-336.59163653,0.00017973,2]
[404490341,1770209449181,-496.6693993,0.00017973,2]
[404490342,1770209449190,-500.0,0.00017973,2]
[404490343,1770209449200,-500.0,0.00017973,2]
[404490344,1770209449209,-1000.0,0.00017987,2]
[404490345,1770209449219,-1000.0,0.00017987,2]
[404490346,1770209449228,-1000.0,0.00017987,2]
[404490347,1770209449238,-1000.0,0.00017987,2]
[404490348,1770209449247,-1000.0,0.00017987,2]
[404490349,1770209449256,-651.342,0.00017987,2]
[404490350,1770209449266,-1000.0,0.00017987,2]
[404490351,1770209449275,-1000.0,0.00017987,2]
[404490352,1770209449285,-1000.0,0.00017987,2]
[404490353,1770209449295,-1000.0,0.00017987,2]
[404490354,1770209449305,-1000.0,0.00017987,2]
[404490355,1770209449314,-1000.0,0.00017987,2]
[404490356,1770209449324,-1000.0,0.00017987,2]
[404490357,1770209449333,-1000.0,0.00017987,2]
[404490358,1770209449342,-1000.0,0.00017987,2]
[404490359,1770209449351,-1000.0,0.00017987,2]
[404490360,1770209449361,-1008.22906043,0.00017998,4]
[404490361,1770209449371,-11181.99469249,0.00017998,4]
[404490362,1770209449380,-161.78,0.00017999,2]
[404490363,1770209449390,-1178.6353464,0.00017999,5]
[404490364,1770209449398,-13717.69048011,0.00017999,2]
[404490365,1770209449408,-300.0,0.00017999,2]
[404490366,1770209449418,-300.0,0.00017999,2]
[404490367,1770209449427,-300.0,0.00017999,2]
[404490368,1770209449437,-390.74983131,0.00017999,2]
[404490369,1770209449446,-193588.7473634,0.00018,2]
[404490370,1770209449456,-247419.79737524,0.00018,2]
[404490371,1770209449465,-66888.92612433,0.00018,2]
[404490372,1770209449802,-132618.89978886,0.00018,2]
[404490373,1770209449814,-471.44787636,0.00018,2]
[404490374,1770209449825,-1404.44569842,0.00018,2]
[404490375,1770209450607,-500.0,0.00012632,2]
[404490376,1770209450616,-909.52165585,0.00018,2]
[404490377,1770209450628,-959.97164145,0.00018,2]
[404490378,1770209450639,-686.78059288,0.00018,2]
[404490379,1770209450818,-375.82408778,0.00018,2]
[404490380,1770209451026,-6094.98962257,0.00018,2]
[404490381,1770209451039,-6864.47252796,0.00018,2]
[404490382,1770209451071,-1086.88479984,0.00018,2]
[404490383,1770209451082,-968.50603794,0.00018,2]
[404490384,1770209451094,-9893.93085214,0.00018,2]
[404490385,1770209451106,-318.19988001,0.00018,2]
[404490386,1770209451117,-37168.67320018,0.00018,2]
[404490387,1770209451128,-661.53830446,0.00018,2]
[404490388,1770209451139,-624.14468358,0.00018,2]
[404490389,1770209451151,-2505.35903128,0.00018,2]
[404490390,1770209451177,-4095.31242003,0.00018,2]
[404490490,1770210449029,387.64529083,0.00013749,7]
[404490491,1770210449694,150.0,0.00013749,7]
[404490495,1770210547140,-169.62,0.00011107,2]
[404490496,1770210547161,-2996.44,0.00011233,2]
[404490497,1770210547186,-300.0,0.00011488,2]
[404490498,1770210547206,-166.66,0.00011489,2]
[404490499,1770210547230,-339.295166,0.00011489,2]
[404490507,1770210631336,-1200.0,0.00011488,2]
[404490508,1770210631346,-244.0,0.00011488,2]
[404490509,1770210631355,-813.89935505,0.00011489,2]
[404490510,1770210631366,-577.1896064,0.00011489,2]
[404490511,1770210631382,-988.28202685,0.00011489,2]
[404490512,1770210631393,-1326.4511873,0.00011489,2]
[404490513,1770210631450,-4575.22842197,0.00011489,2]
[404490514,1770210631460,-300.0,0.00011507,2]
[404490515,1770210631469,-222.126641,0.00011508,2]
[404490516,1770210631479,-2101.39145656,0.00011508,2]
[404490517,1770210631488,-442.65100812,0.00011508,2]
[404490518,1770210631498,-175.5376045,0.00011508,2]
[404490520,1770210631507,-500.0,0.00011526,2]
[404490522,1770210631515,-150.0,0.00011526,2]
[404490523,1770210631525,-150.39668151,0.00011544,2]
[404490525,1770210631534,-250.0,0.00011548,2]
[404490527,1770210631543,-1000.0,0.00011553,2]
[404490529,1770210631552,-330.42693692,0.00011553,2]
[404490531,1770210631562,-500.0,0.00011553,2]
[404490534,1770210631572,-523.45308467,0.00011553,2]
[404490536,1770210631581,-150.0,0.00011553,2]
[404490538,1770210631590,-4123.0271,0.00011554,2]
[404490540,1770210631599,-2439.27308187,0.00011554,2]
[404490542,1770210631610,-16793.70648652,0.00011554,2]
[404490544,1770210631621,-698.60816711,0.00011554,2]
[404490545,1770210631634,-7231.64970911,0.00011554,2]
[404490547,1770210631649,-556.34537306,0.00011554,2]
[404490548,1770210631660,-1518.79195812,0.00011554,2]
[404490549,1770210631670,-950.69681676,0.00011554,2]
[404490550,1770210631681,-970.9875198,0.00011554,2]
[404490556,1770210640118,-1772.88362528,0.00011481,2]
[404490557,1770210640129,-3177.47666115,0.00011544,2]
[404490558,1770210640138,-3468839.94088765,0.00011554,2]
[404490559,1770210640147,-500.0,0.00011581,2]
[404490560,1770210640156,-500.0,0.00011636,2]
[404490561,1770210640165,-150.39668151,0.00011644,2]
[404490562,1770210640174,-467239.87,0.00011654,2]
[404490563,1770210640183,-500.0,0.0001169,2]
[404490564,1770210640193,-500.0,0.00011745,2]
[404490565,1770210640204,-500.0,0.000118,2]
[404490566,1770210640213,-150.0,0.00011839,2]
[404490567,1770210640223,-150.0,0.00011839,2]
[404490568,1770210640232,-150.0,0.00011839,2]
[404490569,1770210640243,-200.0,0.00011839,2]
[404490570,1770210640251,-866.0,0.00011839,2]
[404490571,1770210640261,-2361.0,0.00011839,2]
[404490572,1770210640271,-150.0,0.00011839,2]
[404490573,1770210640280,-150.0,0.00011839,2]
[404490574,1770210640290,-500.0,0.00011839,2]
[404490575,1770210640299,-150.0,0.00011839,2]
[404490576,1770210640309,-150.0,0.00011839,2]
[404490577,1770210640318,-150.0,0.00011839,2]
[404490578,1770210640327,-150.0,0.00011839,2]
[404490579,1770210640336,-500.0,0.00011839,2]
[404490580,1770210640346,-350.0,0.00011855,2]
[404490581,1770210640355,-166.66,0.00011868,2]
[404490582,1770210640364,-1037.33659416,0.00011873,2]
[404490583,1770210640374,-500.0,0.00011894,2]
[404490584,1770210640383,-150.0,0.00011894,2]
[404490585,1770210640392,-150.0,0.00011894,2]
[404490586,1770210640401,-866.0,0.00011894,2]
[404490587,1770210640411,-2361.0,0.00011894,2]
[404490588,1770210640420,-200.0,0.00011894,2]
[404490589,1770210640429,-500.0,0.00011894,2]
[404490591,1770210640439,-150.0,0.00011894,2]
[404490592,1770210640448,-150.0,0.00011894,2]
[404490593,1770210640457,-500.0,0.00011894,2]
[404490594,1770210640466,-949.57907636,0.0001192,2]
[404490595,1770210640474,-10000.0,0.0001192,2]
[404490596,1770210640483,-200.0,0.00011949,2]
[404490597,1770210640492,-170.0,0.00011949,2]
[404490598,1770210640501,-866.0,0.00011949,2]
[404490599,1770210640510,-2361.0,0.00011949,2]
[404490600,1770210640518,-418.0,0.00011949,2]
[404490601,1770210640527,-200.0,0.00011949,2]
[404490602,1770210640536,-200.0,0.00011949,2]
[404490603,1770210640546,-482.0,0.00011949,2]
[404490604,1770210640557,-9999.99,0.00011973,2]
[404490605,1770210640565,-3533.29,0.00011973,2]
[404490606,1770210640574,-259.19,0.00012,2]
[404490607,1770210640584,-866.0,0.00012003,2]
[404490608,1770210640593,-2361.0,0.00012003,2]
[404490609,1770210640602,-500.0,0.00012013,2]
[404490610,1770210640611,-151.0,0.00012013,2]
[404490611,1770210640621,-151.0,0.00012013,2]
[404490612,1770210640630,-151.0,0.00012013,2]
[404490613,1770210640639,-151.0,0.00012013,2]
[404490614,1770210640648,-500.0,0.00012013,2]
[404490615,1770210640657,-151.0,0.00012013,2]
[404490616,1770210640666,-510.88207769,0.00012013,2]
[404490617,1770210640675,-151.0,0.00012013,2]
[404490618,1770210640684,-151.0,0.00012013,2]
[404490619,1770210640692,-151.0,0.00012013,2]
[404490620,1770210640701,-151.0,0.00012013,2]
[404490621,1770210640710,-151.0,0.00012013,2]
[404490622,1770210640721,-151.0,0.00012013,2]